[Event "FIDE World School-ch O-9 2025"]
[Site "Vrnjacka Banja"]
[Date "2025.03.27"]
[Round "8.1"]
[White "Nematillakhonov, Nurmuhammad"]
[Black "Sultankhan, Nurislam"]
[Result "1-0"]
[Annotator "NA RC"]
[ECO "D20"]
[WhiteElo "1767"]
[BlackElo "1649"]
[PlyCount "193"]
[EventDate "2025.03.19"]
[EventType "swiss"]
[EventCountry "SRB"]
[SourceTitle "playchess.com"]
[Source "ChessBase"]
[SourceQuality "1"]
[TimeControl "5400+30"]

1. d4 {[%emt 0:00:06]} d5 {[%emt 0:00:40]} 2. c4 {[%emt 0:00:07]} dxc4 {[%emt 0:00:32]} 3. e3 {[%emt 0:00:08]} e5 {[%emt 0:00:33]} 4. Bxc4 {[%emt 0:00:07]} exd4 {[%emt 0:00:26]} 5. Nf3 {[%emt 0:00:14]} Bb4+ {[%emt 0:00:59]} 6. Bd2 {[%emt 0:01:15]} Bxd2+ {[%emt 0:00:47]} 7. Qxd2 {[%emt 0:00:59]} Nc6 {[%emt 0:01:06]} 8. exd4 {[%emt 0:13:20]} Nf6 {[%emt 0:09:13]} 9. Ne5 {[%emt 0:00:30]} O-O {[%emt 0:09:25]} 10. Nxc6 {[%emt 0:00:23]} bxc6 {[%emt 0:00:56]} 11. O-O {[%emt 0:00:12]} Bf5 {[%emt 0:01:25]} 12. Nc3 {[%emt 0:00:16]} Qd6 {[%emt 0:00:42]} 13. h3 {[%emt 0:00:46]} h6 {[%emt 0:00:45]} 14. Rfe1 {[%emt 0:00:22]} Rad8 {[%emt 0:01:26]} 15. Rad1 {[%emt 0:00:14]} Rfe8 {[%emt 0:03:53]} 16. Ne2 {[%emt 0:10:46]} Re7 {[%emt 0:09:22]} 17. Ng3 {[%emt 0:01:37]} Rxe1+ {[%emt 0:01:48]} 18. Rxe1 {[%emt 0:01:05]} Bg6 {[%emt 0:01:13]} 19. Rd1 {[%emt 0:03:24]} c5 {[%emt 0:07:42]} 20. d5 {[%emt 0:00:07]} Re8 {[%emt 0:03:24]} 21. Bb5 {[%emt 0:01:08]} Re5 {[%emt 0:00:34]} 22. Bc6 {[%emt 0:03:59]} Rg5 {[%emt 0:05:01]} 23. Qe3 {[%emt 0:01:09]} Kh7 {[%emt 0:02:15]} 24. f4 {[%emt 0:14:08]} Nxd5 {[%emt 0:02:38]} 25. Qf3 {[%emt 0:02:09]} Rxg3 {[%emt 0:06:25]} 26. Qxg3 {[%emt 0:00:04]} Qxc6 {[%emt 0:00:14]} 27. Qf3 {[%emt 0:00:09]} Ne7 {[%emt 0:00:44]} 28. Qxc6 {[%emt 0:00:16]} Nxc6 {[%emt 0:00:01]} 29. Rd7 {[%emt 0:01:28]} Nb4 {[%emt 0:01:01]} 30. Rxc7 {[%emt 0:02:13]} Nxa2 {[%emt 0:01:08]} 31. Rxc5 {[%emt 0:00:14]} Be4 {[%emt 0:03:30]} 32. Ra5 {[%emt 0:00:26]} Nb4 {[%emt 0:01:25]} 33. Ra4 {[%emt 0:01:24]} a5 {[%emt 0:00:15]} 34. g3 {[%emt 0:03:04]} Bf5 {[%emt 0:03:25]} 35. g4 {[%emt 0:00:25]} Bc2 {[%emt 0:00:51]} 36. Rxa5 {[%emt 0:01:44]} Nd3 {[%emt 0:01:04]} 37. f5 {[%emt 0:00:20]} g6 {[%emt 0:03:27]} 38. fxg6+ {[%emt 0:01:22]} Kxg6 {[%emt 0:00:48]} 39. Rb5 {[%emt 0:02:12]} Nf4 {[%emt 0:01:43]} 40. Kh2 {[%emt 0:00:51]} f5 {[%emt 0:02:15]} 41. Rc5 {[%emt 0:01:57]} Be4 {[%emt 0:01:29]} 42. b4 {[%emt 0:00:20]} Nd3 {[%emt 0:01:40]} 43. Rc4 {[%emt 0:00:34]} Ne5 {[%emt 0:00:30]} 44. Rc5 {[%emt 0:00:47]} Nd3 {[%emt 0:00:11]} 45. gxf5+ {[%emt 0:00:07]} Bxf5 {[%emt 0:00:10]} 46. Rc6+ {[%emt 0:00:07]} Kg5 {[%emt 0:00:28]} 47. b5 {[%emt 0:00:36]} Ne5 {[%emt 0:01:06]} 48. Rc5 {[%emt 0:00:28]} Kf4 {[%emt 0:01:18]} 49. b6 {[%emt 0:00:29]} Be4 {[%emt 0:00:59]} 50. Rc7 {[%emt 0:00:53]} Kf3 {[%emt 0:01:51]} 51. Re7 {[%emt 0:01:57]} Kf4 {[%emt 0:01:05]} 52. Kg1 {[%emt 0:00:59]} Bd5 {[%emt 0:00:36]} 53. Kf2 {[%emt 0:01:05]} Nd3+ {[%emt 0:01:22]} 54. Kg1 {[%emt 0:01:24]} Ne5 {[%emt 0:00:09]} 55. b7 {[%emt 0:01:28]} Bxb7 {[%emt 0:00:25]} 56. Rxb7 {[%emt 0:00:07]} Kg3 {[%emt 0:00:34]} 57. Rb3+ {[%emt 0:00:18]} Nf3+ {[%emt 0:00:18]} 58. Kf1 {[%emt 0:00:12]} Kf4 {[%emt 0:00:02]} 59. Kf2 {[%emt 0:00:14]} Nh4 {[%emt 0:00:18]} 60. Rg3 {[%emt 0:00:45]} h5 {[%emt 0:00:25]} 61. Ra3 {[%emt 0:01:02]} Nf5 {[%emt 0:00:49]} 62. Ra5 {[%emt 0:00:14]} Ng7 {[%emt 0:01:25]} 63. Ra4+ {[%emt 0:01:07]} Kg5 {[%emt 0:00:14]} 64. Kf3 {[%emt 0:00:13]} Ne6 {[%emt 0:00:52]} 65. Kg3 {[%emt 0:00:13]} Ng7 {[%emt 0:00:22]} 66. Ra5+ {[%emt 0:00:10]} Kg6 {[%emt 0:00:18]} 67. Ra6+ {[%emt 0:01:15]} Kg5 {[%emt 0:00:31]} 68. h4+ {[%emt 0:01:39]} Kf5 {[%emt 0:00:10]} 69. Kf3 {[%emt 0:00:24]} Ke5 {[%emt 0:01:01]} 70. Ra5+ {[%emt 0:00:14]} Kf6 {[%emt 0:00:16]} 71. Ke4 {[%emt 0:00:14]} Kg6 {[%emt 0:01:01]} 72. Ra6+ {[%emt 0:00:09]} Kf7 {[%emt 0:00:36]} 73. Kf4 {[%emt 0:00:45]} Ne6+ {[%emt 0:00:39]} 74. Kf5 {[%emt 0:01:41]} Ng7+ {[%emt 0:00:45]} 75. Kg5 {[%emt 0:00:09]} Ne6+ {[%emt 0:00:20]} 76. Kxh5 {[%emt 0:00:06]} Nf8 {[%emt 0:00:12]} 77. Kh6 {[%emt 0:00:19]} Kg8 {[%emt 0:00:06]} 78. h5 {[%emt 0:00:28]} Kh8 {[%emt 0:00:06]} 79. Ra7 {[%emt 0:01:36]} Kg8 {[%emt 0:00:10]} 80. Re7 {[%emt 0:00:06]} Kh8 {[%emt 0:00:20]} 81. Kg5 {[%emt 0:01:23]} Kg8 {[%emt 0:00:33]} 82. Kf5 {[%emt 0:02:17]} Nh7 {[%emt 0:00:26]} 83. h6 {[%emt 0:00:13]} Nf8 {[%emt 0:00:05]} 84. Re8 {[%emt 0:00:52]} Kf7 {[%emt 0:00:14]} 85. Ra8 {[%emt 0:00:37]} Nh7 {[%emt 0:00:31]} 86. Rh8 {[%emt 0:00:06]} Nf8 {[%emt 0:00:14]} 87. h7 {[%emt 0:00:28]} Ng6 {[%emt 0:00:16]} 88. Rf8+ {[%emt 0:00:09]} Nxf8 {[%emt 0:00:12]} 89. h8=Q {[%emt 0:00:09]} Nd7 {[%emt 0:00:27]} 90. Qd8 {[%emt 0:00:29]} Nf8 {[%emt 0:00:14]} 91. Qc7+ {[%emt 0:00:06]} Ke8 {[%emt 0:00:31]} 92. Kf6 {[%emt 0:00:08]} Nd7+ {[%emt 0:00:06]} 93. Ke6 {[%emt 0:00:07]} Nf8+ {[%emt 0:00:08]} 94. Kd6 {[%emt 0:00:06]} Ng6 {[%emt 0:00:08]} 95. Qg7 {[%emt 0:00:06]} Kd8 {[%emt 0:00:14]} 96. Qg8+ {[%emt 0:00:07]} Nf8 {[%emt 0:00:08]} 97. Qxf8# {[%emt 0:00:07]} 1-0

[Event "FIDE World School-ch O-9 2025"]
[Site "Vrnjacka Banja"]
[Date "2025.03.27"]
[Round "8.2"]
[White "Wee, Yu Heng Lucas John"]
[Black "Agar, Garig"]
[Result "1-0"]
[Annotator "NA RC"]
[ECO "D37"]
[WhiteElo "1680"]
[BlackElo "1620"]
[PlyCount "127"]
[EventDate "2025.03.19"]
[EventType "swiss"]
[EventCountry "SRB"]
[SourceTitle "playchess.com"]
[Source "ChessBase"]
[SourceQuality "1"]
[TimeControl "5400+30"]

1. d4 {[%emt 0:00:23]} d5 {[%emt 0:00:33]} 2. c4 {[%emt 0:00:28]} e6 {[%emt 0:00:44]} 3. Nc3 {[%emt 0:00:08]} a6 {[%emt 0:00:25]} 4. cxd5 {[%emt 0:06:29]} exd5 {[%emt 0:00:18]} 5. Nf3 {[%emt 0:02:12]} Nf6 {[%emt 0:00:50]} 6. Bg5 {[%emt 0:00:30]} Be6 {[%emt 0:01:20]} 7. Bxf6 {[%emt 0:01:28]} gxf6 {[%emt 0:12:59]} 8. e3 {[%emt 0:03:21]} Nd7 {[%emt 0:00:48]} 9. Bd3 {[%emt 0:01:02]} Nb6 {[%emt 0:01:00]} 10. Qc2 {[%emt 0:09:49]} h6 {[%emt 0:02:16]} 11. e4 {[%emt 0:05:08]} Qd7 {[%emt 0:05:59]} 12. O-O-O {[%emt 0:09:24]} O-O-O {[%emt 0:03:04]} 13. Kb1 {[%emt 0:08:37]} Rg8 {[%emt 0:03:16]} 14. Nh4 {[%emt 0:08:02]} Be7 {[%emt 0:07:30]} 15. f4 {[%emt 0:07:59]} Bg4 {[%emt 0:11:59]} 16. Rde1 {[%emt 0:07:51]} dxe4 {[%emt 0:08:22]} 17. Bxe4 {[%emt 0:00:42]} Bb4 {[%emt 0:03:40]} 18. h3 {[%emt 0:10:48]} Be6 {[%emt 0:02:46]} 19. f5 {[%emt 0:02:37]} Bc4 {[%emt 0:00:14]} 20. Rd1 {[%emt 0:02:06]} Rde8 {[%emt 0:04:54]} 21. Rhe1 {[%emt 0:01:17]} Bb5 {[%emt 0:03:19]} 22. a3 {[%emt 0:03:02]} Bd6 {[%emt 0:02:21]} 23. Nf3 {[%emt 0:01:49]} Na4 {[%emt 0:02:26]} 24. Nd5 {[%emt 0:01:47]} Be7 {[%emt 0:04:45]} 25. b3 {[%emt 0:00:47]} Kb8 {[%emt 0:17:12]} 26. bxa4 {[%emt 0:01:28]} Bxa4 {[%emt 0:00:00]} 27. Qb2 {[%emt 0:00:12]} Bxa3 {[%emt 0:00:00]} 28. Qxa3 {[%emt 0:02:05]} Bxd1 {[%emt 0:00:00]} 29. Nxf6 {[%emt 0:00:32]} Qb5+ {[%emt 0:00:00]} 30. Qb2 {[%emt 0:00:09]} Bxf3 {[%emt 0:00:00]} 31. Qxb5 {[%emt 0:01:28]} axb5 {[%emt 0:00:00]} 32. gxf3 {[%emt 0:00:17]} Rxe4 {[%emt 0:00:00]} 33. fxe4 {[%emt 0:00:43]} Rg3 {[%emt 0:00:00]} 34. e5 {[%emt 0:00:23]} Rxh3 {[%emt 0:00:00]} 35. e6 {[%emt 0:00:10]} fxe6 {[%emt 0:00:00]} 36. fxe6 {[%emt 0:00:16]} Rb3+ {[%emt 0:00:00]} 37. Kc2 {[%emt 0:00:13]} Rh3 {[%emt 0:00:00]} 38. e7 {[%emt 0:00:14]} Rh2+ {[%emt 0:00:00]} 39. Kb1 {[%emt 0:00:08]} c5 {[%emt 0:00:00]} 40. e8=Q+ {[%emt 0:04:26]} Ka7 {[%emt 0:07:30]} 41. dxc5 {[%emt 0:00:00]} Rf2 {[%emt 0:00:00]} 42. Qxb5 {[%emt 0:00:00]} Rxf6 {[%emt 0:00:00]} 43. Qa5+ {[%emt 0:00:00]} Ra6 {[%emt 0:00:00]} 44. Qxa6+ {[%emt 0:00:00]} Kxa6 {[%emt 0:00:00]} 45. Re6+ {[%emt 0:00:00]} Kb5 {[%emt 0:00:00]} 46. Rb6+ {[%emt 0:00:00]} Kxc5 {[%emt 0:00:00]} 47. Rxb7 {[%emt 0:00:00]} Kd4 {[%emt 0:00:00]} 48. Rh7 {[%emt 0:00:00]} Ke5 {[%emt 0:00:00]} 49. Rxh6 {[%emt 0:00:00]} Kd5 {[%emt 0:00:00]} 50. Kc2 {[%emt 0:00:00]} Ke5 {[%emt 0:00:00]} 51. Kd3 {[%emt 0:00:00]} Kf5 {[%emt 0:00:00]} 52. Rc6 {[%emt 0:00:00]} Ke5 {[%emt 0:00:00]} 53. Rc5+ {[%emt 0:00:00]} Kd6 {[%emt 0:00:00]} 54. Kd4 {[%emt 0:00:00]} Ke6 {[%emt 0:00:00]} 55. Rd5 {[%emt 0:00:00]} Kf6 {[%emt 0:00:00]} 56. Re5 {[%emt 0:00:00]} Kg6 {[%emt 0:00:00]} 57. Ke4 {[%emt 0:00:00]} Kf6 {[%emt 0:00:00]} 58. Kf4 {[%emt 0:00:00]} Kf7 {[%emt 0:00:00]} 59. Kf5 {[%emt 0:00:00]} Kg7 {[%emt 0:00:00]} 60. Re7+ {[%emt 0:00:00]} Kf8 {[%emt 0:00:00]} 61. Kf6 {[%emt 0:00:00]} Kg8 {[%emt 0:00:00]} 62. Re8+ {[%emt 0:00:00]} Kh7 {[%emt 0:00:00]} 63. Ra8 {[%emt 0:00:00]} Kh6 {[%emt 0:00:00]} 64. Rh8# {[%emt 0:00:16]} 1-0

[Event "FIDE World School-ch O-9 2025"]
[Site "Vrnjacka Banja"]
[Date "2025.03.27"]
[Round "8.3"]
[White "Dede, Omer Taha"]
[Black "Batbileg, Boldbaatar"]
[Result "0-1"]
[Annotator "NA RC"]
[ECO "D31"]
[WhiteElo "1647"]
[BlackElo "1637"]
[PlyCount "104"]
[EventDate "2025.03.19"]
[EventType "swiss"]
[EventCountry "SRB"]
[SourceTitle "playchess.com"]
[Source "ChessBase"]
[SourceQuality "1"]
[TimeControl "5400+30"]

1. d4 {[%emt 0:00:30]} d5 {[%emt 0:00:13]} 2. c4 {[%emt 0:00:30]} e6 {[%emt 0:00:18]} 3. Nc3 {[%emt 0:01:00]} a6 {[%emt 0:00:13]} 4. Nf3 {[%emt 0:01:30]} dxc4 {[%emt 0:00:18]} 5. Bf4 {[%emt 0:05:00]} b5 {[%emt 0:01:15]} 6. e3 {[%emt 0:06:00]} Nf6 {[%emt 0:00:50]} 7. Rc1 {[%emt 0:03:30]} Bb7 {[%emt 0:01:55]} 8. Be2 {[%emt 0:05:00]} Bd6 {[%emt 0:06:50]} 9. Bxd6 {[%emt 0:01:30]} cxd6 {[%emt 0:00:42]} 10. O-O {[%emt 0:06:00]} O-O {[%emt 0:01:09]} 11. Qc2 {[%emt 0:15:00]} Nbd7 {[%emt 0:02:34]} 12. Rfd1 {[%emt 0:08:00]} Rc8 {[%emt 0:02:11]} 13. Qd2 {[%emt 0:00:30]} Qb6 {[%emt 0:02:16]} 14. Qe1 {[%emt 0:14:00]} e5 {[%emt 0:07:53]} 15. Qf1 {[%emt 0:08:30]} e4 {[%emt 0:08:08]} 16. Nd2 {[%emt 0:02:10]} d5 {[%emt 0:00:26]} 17. h3 {[%emt 0:03:15]} b4 {[%emt 0:00:11]} 18. Ncb1 {[%emt 0:01:10]} Qa5 {[%emt 0:01:57]} 19. a3 {[%emt 0:01:55]} bxa3 {[%emt 0:01:16]} 20. bxa3 {[%emt 0:00:25]} c3 {[%emt 0:00:33]} 21. Nb3 {[%emt 0:00:20]} Qa4 {[%emt 0:00:18]} 22. Nxc3 {[%emt 0:03:15]} Qxb3 {[%emt 0:00:46]} 23. Rb1 {[%emt 0:00:31]} Qxc3 {[%emt 0:00:29]} 24. Rxb7 {[%emt 0:00:09]} Rb8 {[%emt 0:01:30]} 25. Rc1 {[%emt 0:01:00]} Qxc1 {[%emt 0:04:31]} 26. Qxc1 {[%emt 0:00:20]} Rxb7 {[%emt 0:00:04]} 27. Bxa6 {[%emt 0:00:30]} Rb6 {[%emt 0:00:28]} 28. Be2 {[%emt 0:00:20]} Rfb8 {[%emt 0:00:14]} 29. Kh2 {[%emt 0:00:10]} Rb2 {[%emt 0:00:20]} 30. Ba6 {[%emt 0:00:30]} Rxf2 {[%emt 0:00:22]} 31. Kg3 {[%emt 0:00:27]} Rbb2 {[%emt 0:00:42]} 32. Qc8+ {[%emt 0:00:33]} Nf8 {[%emt 0:00:06]} 33. Bb7 {[%emt 0:00:20]} Rxg2+ {[%emt 0:01:39]} 34. Kf4 {[%emt 0:00:15]} N6d7 {[%emt 0:00:34]} 35. Bxd5 {[%emt 0:00:39]} Rbf2+ {[%emt 0:00:13]} 36. Kxe4 {[%emt 0:00:12]} Nf6+ {[%emt 0:00:16]} 37. Ke5 {[%emt 0:00:14]} Rg5+ {[%emt 0:00:10]} 38. Kd6 {[%emt 0:00:49]} Rxd5+ {[%emt 0:00:09]} 39. Ke7 {[%emt 0:00:13]} Rd7+ {[%emt 0:00:06]} 40. Qxd7 {[%emt 0:00:03]} N8xd7 {[%emt 0:00:13]} 41. d5 {[%emt 0:00:25]} Re2 {[%emt 0:00:10]} 42. d6 {[%emt 0:00:05]} Rxe3+ {[%emt 0:00:14]} 43. Kd8 {[%emt 0:00:05]} Rxa3 {[%emt 0:00:15]} 44. h4 {[%emt 0:00:15]} Rh3 {[%emt 0:00:11]} 45. h5 {[%emt 0:00:04]} Rxh5 {[%emt 0:00:19]} 46. Ke7 {[%emt 0:00:05]} g5 {[%emt 0:00:20]} 47. Kd8 {[%emt 0:00:03]} g4 {[%emt 0:00:20]} 48. Ke7 {[%emt 0:00:05]} g3 {[%emt 0:00:23]} 49. Kd8 {[%emt 0:00:02]} g2 {[%emt 0:00:08]} 50. Ke7 {[%emt 0:00:02]} g1=Q {[%emt 0:00:14]} 51. Kd8 {[%emt 0:00:04]} Qb6+ {[%emt 0:00:10]} 52. Ke7 {[%emt 0:00:06]} Re5# {[%emt 0:00:28]} 0-1

[Event "FIDE World School-ch O-9 2025"]
[Site "Vrnjacka Banja"]
[Date "2025.03.27"]
[Round "8.4"]
[White "Bondarev, Fedor"]
[Black "Lee, Jinwoo A"]
[Result "1-0"]
[Annotator "NA RC"]
[ECO "A96"]
[WhiteElo "1598"]
[BlackElo "1525"]
[PlyCount "77"]
[EventDate "2025.03.19"]
[EventType "swiss"]
[EventCountry "SRB"]
[SourceTitle "playchess.com"]
[Source "ChessBase"]
[SourceQuality "1"]
[TimeControl "5400+30"]

1. Nf3 {[%emt 0:00:11]} f5 {[%emt 0:02:35]} 2. d4 {[%emt 0:00:55]} Nf6 {[%emt 0:00:09]} 3. c4 {[%emt 0:00:11]} e6 {[%emt 0:01:49]} 4. Nc3 {[%emt 0:00:17]} d6 {[%emt 0:00:44]} 5. g3 {[%emt 0:00:25]} Be7 {[%emt 0:00:00]} 6. Bg2 {[%emt 0:00:25]} O-O {[%emt 0:00:00]} 7. O-O {[%emt 0:00:33]} Ne4 {[%emt 0:00:10]} 8. Ne1 {[%emt 0:03:33]} Nxc3 {[%emt 0:12:12]} 9. bxc3 {[%emt 0:00:39]} e5 {[%emt 0:01:01]} 10. Ba3 {[%emt 0:02:52]} e4 {[%emt 0:02:20]} 11. f3 {[%emt 0:00:14]} Bg5 {[%emt 0:26:25]} 12. Bc1 {[%emt 0:03:03]} Bxc1 {[%emt 0:03:16]} 13. Qxc1 {[%emt 0:00:56]} d5 {[%emt 0:46:19]} 14. cxd5 {[%emt 0:00:32]} Re8 {[%emt 0:00:00]} 15. fxe4 {[%emt 0:02:02]} fxe4 {[%emt 0:00:00]} 16. Qf4 {[%emt 0:00:08]} Qe7 {[%emt 0:00:00]} 17. Bxe4 {[%emt 0:00:38]} Nd7 {[%emt 0:00:00]} 18. Bf3 {[%emt 0:02:25]} Nf6 {[%emt 0:00:00]} 19. Nd3 {[%emt 0:00:58]} Bh3 {[%emt 0:00:00]} 20. Rfe1 {[%emt 0:00:24]} Rf8 {[%emt 0:00:00]} 21. Qd2 {[%emt 1:19:39]} Ne4 {[%emt 0:00:00]} 22. Qe3 {[%emt 0:00:00]} Rae8 {[%emt 0:00:00]} 23. Bxe4 {[%emt 0:00:00]} Qxe4 {[%emt 0:00:00]} 24. Qxe4 {[%emt 0:00:00]} Rxe4 {[%emt 0:00:00]} 25. Nf2 {[%emt 0:00:00]} Re7 {[%emt 0:00:00]} 26. Nxh3 {[%emt 0:00:00]} b6 {[%emt 0:00:00]} 27. e4 {[%emt 0:00:00]} Rfe8 {[%emt 0:00:00]} 28. e5 {[%emt 0:00:00]} Kf7 {[%emt 0:00:00]} 29. Rf1+ {[%emt 0:00:00]} Kg8 {[%emt 0:00:00]} 30. Rf3 {[%emt 0:00:00]} h6 {[%emt 0:00:00]} 31. Raf1 {[%emt 0:00:00]} c5 {[%emt 0:00:00]} 32. d6 {[%emt 0:00:00]} Rd7 {[%emt 0:00:00]} 33. Nf4 {[%emt 0:00:00]} g5 {[%emt 0:00:00]} 34. Nd5 {[%emt 0:00:00]} Red8 {[%emt 0:00:00]} 35. Nf6+ {[%emt 0:00:00]} Kg7 {[%emt 0:00:00]} 36. Nxd7 {[%emt 0:00:00]} Rxd7 {[%emt 0:00:00]} 37. d5 {[%emt 0:00:00]} Kg8 {[%emt 0:00:00]} 38. e6 {[%emt 0:00:00]} Rd8 {[%emt 0:00:00]} 39. e7 {[%emt 0:00:00]} 1-0

[Event "FIDE World School-ch O-9 2025"]
[Site "Vrnjacka Banja"]
[Date "2025.03.27"]
[Round "8.5"]
[White "Redkin, Dmitriy S"]
[Black "Erkin, Galam"]
[Result "1/2-1/2"]
[Annotator "NA RC"]
[ECO "C04"]
[WhiteElo "2042"]
[BlackElo "1570"]
[PlyCount "61"]
[EventDate "2025.03.19"]
[EventType "swiss"]
[EventCountry "SRB"]
[SourceTitle "playchess.com"]
[Source "ChessBase"]
[SourceQuality "1"]
[TimeControl "5400+30"]

1. e4 {[%emt 0:00:02]} e6 {[%emt 0:04:38]} 2. d4 {[%emt 0:00:13]} d5 {[%emt 0:00:34]} 3. Nd2 {[%emt 0:00:09]} Nc6 {[%emt 0:00:05]} 4. Ngf3 {[%emt 0:00:06]} Nf6 {[%emt 0:00:16]} 5. exd5 {[%emt 0:00:57]} exd5 {[%emt 0:00:19]} 6. c3 {[%emt 0:00:21]} Bd6 {[%emt 0:00:35]} 7. Bd3 {[%emt 0:00:31]} Qe7+ {[%emt 0:01:39]} 8. Qe2 {[%emt 0:00:25]} Qxe2+ {[%emt 0:01:11]} 9. Kxe2 {[%emt 0:00:11]} O-O {[%emt 0:00:47]} 10. Nf1 {[%emt 0:00:51]} Re8+ {[%emt 0:02:07]} 11. Ne3 {[%emt 0:01:00]} g6 {[%emt 0:07:22]} 12. Kd2 {[%emt 0:05:23]} Ne4+ {[%emt 0:05:41]} 13. Bxe4 {[%emt 0:05:33]} dxe4 {[%emt 0:00:51]} 14. Ng1 {[%emt 0:00:08]} f5 {[%emt 0:05:01]} 15. Ne2 {[%emt 0:11:37]} f4 {[%emt 0:09:01]} 16. Nc4 {[%emt 0:00:17]} f3 {[%emt 0:05:59]} 17. Nxd6 {[%emt 0:00:47]} cxd6 {[%emt 0:02:49]} 18. gxf3 {[%emt 0:00:56]} exf3 {[%emt 0:00:04]} 19. Ng3 {[%emt 0:00:17]} d5 {[%emt 0:04:53]} 20. b3 {[%emt 0:01:03]} Ne7 {[%emt 0:01:22]} 21. Ba3 {[%emt 0:00:24]} Nf5 {[%emt 0:00:22]} 22. Rhe1 {[%emt 0:00:39]} Bd7 {[%emt 0:01:42]} 23. Nxf5 {[%emt 0:02:12]} Bxf5 {[%emt 0:00:32]} 24. Bd6 {[%emt 0:00:57]} Rac8 {[%emt 0:01:29]} 25. Rxe8+ {[%emt 0:01:29]} Rxe8 {[%emt 0:00:04]} 26. Be5 {[%emt 0:02:15]} Rc8 {[%emt 0:01:45]} 27. Rc1 {[%emt 0:00:33]} b5 {[%emt 0:00:07]} 28. Bd6 {[%emt 0:04:00]} Kf7 {[%emt 0:02:50]} 29. Bc5 {[%emt 0:02:35]} Re8 {[%emt 0:06:17]} 30. Re1 {[%emt 0:02:30]} Rxe1 {[%emt 0:00:50]} 31. Kxe1 {[%emt 0:00:08]} 1/2-1/2

[Event "FIDE World School-ch O-9 2025"]
[Site "Vrnjacka Banja"]
[Date "2025.03.27"]
[Round "8.6"]
[White "Ulan, Rizat"]
[Black "Zhanabayev, Arystan"]
[Result "1-0"]
[Annotator "NA RC"]
[ECO "B38"]
[WhiteElo "1769"]
[BlackElo "1507"]
[PlyCount "149"]
[EventDate "2025.03.19"]
[EventType "swiss"]
[EventCountry "SRB"]
[SourceTitle "playchess.com"]
[Source "ChessBase"]
[SourceQuality "1"]
[TimeControl "5400+30"]

1. e4 {[%emt 0:00:00]} c5 {[%emt 0:00:04]} 2. Nf3 {[%emt 0:00:26]} Nc6 {[%emt 0:00:06]} 3. d4 {[%emt 0:00:04]} cxd4 {[%emt 0:00:04]} 4. Nxd4 {[%emt 0:00:03]} g6 {[%emt 0:00:09]} 5. c4 {[%emt 0:00:03]} Bg7 {[%emt 0:00:21]} 6. Be3 {[%emt 0:00:11]} Qb6 {[%emt 0:00:10]} 7. Nb3 {[%emt 0:00:13]} Qd8 {[%emt 0:00:08]} 8. Nc3 {[%emt 0:02:36]} Nf6 {[%emt 0:01:19]} 9. Be2 {[%emt 0:01:24]} O-O {[%emt 0:01:57]} 10. O-O {[%emt 0:00:30]} d6 {[%emt 0:00:25]} 11. f3 {[%emt 0:01:10]} a5 {[%emt 0:04:07]} 12. Qd2 {[%emt 0:02:40]} a4 {[%emt 0:01:30]} 13. Nd4 {[%emt 0:02:25]} Nxd4 {[%emt 0:07:50]} 14. Bxd4 {[%emt 0:01:15]} Nd7 {[%emt 0:10:14]} 15. Bxg7 {[%emt 0:02:49]} Kxg7 {[%emt 0:00:08]} 16. Qd4+ {[%emt 0:00:18]} f6 {[%emt 0:04:56]} 17. Nd5 {[%emt 0:11:53]} Nc5 {[%emt 0:02:14]} 18. Qe3 {[%emt 0:00:58]} Be6 {[%emt 0:13:49]} 19. b4 {[%emt 0:05:12]} axb3 {[%emt 0:00:54]} 20. axb3 {[%emt 0:00:05]} Rxa1 {[%emt 0:00:37]} 21. Rxa1 {[%emt 0:00:10]} Bxd5 {[%emt 0:03:39]} 22. exd5 {[%emt 0:00:05]} Rf7 {[%emt 0:06:01]} 23. b4 {[%emt 0:03:54]} Na6 {[%emt 0:02:10]} 24. Qa7 {[%emt 0:01:08]} Qc8 {[%emt 0:26:08]} 25. Qb6 {[%emt 0:01:28]} h5 {[%emt 0:06:06]} 26. Kf1 {[%emt 0:22:28]} h4 {[%emt 0:02:06]} 27. Rc1 {[%emt 0:02:26]} Qc7 {[%emt 0:02:18]} 28. Qb5 {[%emt 0:12:46]} g5 {[%emt 0:01:44]} 29. Kg1 {[%emt 0:00:48]} f5 {[%emt 0:00:52]} 30. c5 {[%emt 0:03:16]} dxc5 {[%emt 0:00:22]} 31. bxc5 {[%emt 0:00:04]} Qf4 {[%emt 0:00:22]} 32. Qb2+ {[%emt 0:00:03]} Kg6 {[%emt 0:00:42]} 33. c6 {[%emt 0:00:46]} Nc5 {[%emt 0:01:35]} 34. cxb7 {[%emt 0:01:36]} Nxb7 {[%emt 0:00:17]} 35. Rc6+ {[%emt 0:01:58]} Nd6 {[%emt 0:00:19]} 36. Qh8 {[%emt 0:00:42]} Qe3+ {[%emt 0:00:49]} 37. Kf1 {[%emt 0:00:04]} f4 {[%emt 0:01:08]} 38. Rc3 {[%emt 0:01:09]} Rh7 {[%emt 0:01:02]} 39. Rxe3 {[%emt 0:02:13]} Rxh8 {[%emt 0:00:08]} 40. Rxe7 {[%emt 0:00:07]} Rd8 {[%emt 0:00:37]} 41. Bd3+ {[%emt 0:00:21]} Kf6 {[%emt 0:00:46]} 42. Re6+ {[%emt 0:00:06]} Kf7 {[%emt 0:00:11]} 43. Rg6 {[%emt 0:00:21]} Nc4 {[%emt 0:00:21]} 44. Rxg5 {[%emt 0:01:02]} Ne3+ {[%emt 0:00:14]} 45. Ke2 {[%emt 0:01:31]} Kf6 {[%emt 0:00:43]} 46. Rg6+ {[%emt 0:00:09]} Ke7 {[%emt 0:00:17]} 47. Be4 {[%emt 0:01:15]} Rb8 {[%emt 0:01:06]} 48. g3 {[%emt 0:03:41]} Rb2+ {[%emt 0:00:27]} 49. Kd3 {[%emt 0:00:05]} Rxh2 {[%emt 0:00:52]} 50. gxf4 {[%emt 0:00:07]} Ng2 {[%emt 0:00:14]} 51. d6+ {[%emt 0:00:04]} Kd8 {[%emt 0:00:24]} 52. Kd4 {[%emt 0:00:32]} Nxf4 {[%emt 0:00:43]} 53. Rg8+ {[%emt 0:00:05]} Kd7 {[%emt 0:00:20]} 54. Ke5 {[%emt 0:00:03]} Ne6 {[%emt 0:00:23]} 55. Rh8 {[%emt 0:02:11]} Ng7 {[%emt 0:00:46]} 56. Rh7 {[%emt 0:00:26]} Rg2 {[%emt 0:00:18]} 57. f4 {[%emt 0:01:29]} Rg1 {[%emt 0:00:32]} 58. Kf6 {[%emt 0:00:28]} Kxd6 {[%emt 0:00:39]} 59. Rxg7 {[%emt 0:00:08]} Rf1 {[%emt 0:00:20]} 60. Kf5 {[%emt 0:00:13]} Rf2 {[%emt 0:00:32]} 61. Rh7 {[%emt 0:00:07]} Rh2 {[%emt 0:00:27]} 62. Kg4 {[%emt 0:00:23]} Ke6 {[%emt 0:00:12]} 63. Rh6+ {[%emt 0:00:14]} Kf7 {[%emt 0:00:37]} 64. Rxh4 {[%emt 0:00:32]} Rb2 {[%emt 0:00:17]} 65. Kg5 {[%emt 0:00:18]} Rb5+ {[%emt 0:00:13]} 66. f5 {[%emt 0:00:07]} Kg7 {[%emt 0:00:14]} 67. Bf3 {[%emt 0:00:19]} Ra5 {[%emt 0:00:15]} 68. Bg4 {[%emt 0:00:03]} Rc5 {[%emt 0:00:21]} 69. Rh3 {[%emt 0:00:04]} Ra5 {[%emt 0:00:32]} 70. Rb3 {[%emt 0:00:05]} Ra7 {[%emt 0:00:11]} 71. f6+ {[%emt 0:00:06]} Kh7 {[%emt 0:00:33]} 72. Rh3+ {[%emt 0:00:07]} Kg8 {[%emt 0:00:21]} 73. Be6+ {[%emt 0:00:32]} Rf7 {[%emt 0:00:12]} 74. Rh6 {[%emt 0:00:09]} Kf8 {[%emt 0:00:11]} 75. Rh8# {[%emt 0:00:06]} 1-0